bitfinex-derivatives/quotes_ETHF0:USTF0_20250224
["timestamp","ask_amount","ask_price","bid_price","bid_amount"]
[1740412789624,1.12911,2660.6,2660.5,3.2078]
[1740412789826,1.12912,2660.5,2660.4,0.75174]
[1740412790020,0.3774,2660.5,2660.2,3.7881]
[1740412790228,0.3774,2660.7,2660.2,3.7881]
[1740412790421,0.75172,2660.5,2660.4,3.95953]
[1740412790619,2.41076,2661.0,2660.4,3.2078]
[1740412790823,0.75172,2660.5,2660.4,3.2078]
[1740412791324,0.3774,2660.7,2660.3,3.744]
[1740412791518,1.12916,2660.4,2660.3,7.70354]
[1740412792229,0.3774,2660.4,2660.3,7.70354]
[1740412792434,0.3774,2660.5,2660.4,0.75175]
[1740412792918,1.12912,2660.5,2660.4,0.75175]
[1740412793230,0.3774,2660.5,2660.3,3.2078]
[1740412793432,1.66465,2660.4,2660.3,3.2078]
[1740412794132,1.66465,2660.4,2660.3,2.83]
[1740412794427,1.1292,2660.2,2660.1,0.00564483]
[1740412796224,0.5355,2660.4,2660.1,0.00564483]
[1740412796425,1.6892,2661.0,2660.1,0.00564483]
[1740412796630,1.87912,2660.8,2660.1,0.75745483]
[1740412796929,0.75177,2660.3,2660.2,40.8]
[1740412797329,1.1292,2660.2,2660.1,0.00564483]
[1740412797631,0.7518,2660.2,2660.1,0.00564483]
[1740412797923,0.5904,2660.3,2659.6,40.8]
[1740412798128,0.752,2659.5,2659.4,4.49503]
[1740412798320,0.3774,2659.7,2659.4,3.743]
[1740412798518,0.75196,2659.7,2659.6,3.95977]
[1740412798729,0.75196,2659.7,2659.6,3.2078]
[1740412799028,0.75194,2659.7,2659.6,3.2078]
[1740412799232,0.75193,2659.8,2659.7,0.75192]
[1740412799433,0.75755483,2659.9,2659.8,0.75192]
[1740412799631,0.75194,2659.8,2659.7,0.75193]
[1740412800030,0.75753483,2659.9,2659.8,0.75192]
[1740412800228,0.75753483,2659.9,2659.6,3.7543]
[1740412800426,0.00564483,2659.9,2659.6,3.7543]
[1740412800640,0.5904,2660.3,2659.6,3.7543]
[1740412801233,1.87952,2660.2,2659.9,3.2078]
[1740412801432,0.75186,2660.0,2659.9,3.2078]
[1740412801627,1.12926,2660.0,2659.9,3.2078]
[1740412801824,0.75194,2659.7,2659.6,4.2885]
[1740412802132,0.7519,2659.9,2659.8,0.7519]
[1740412802335,0.3774,2660.0,2659.6,7.4963]
[1740412802526,0.75194,2659.8,2659.7,0.75194]
[1740412802723,0.7519,2659.9,2659.8,0.7519]
[1740412802922,0.75192,2659.8,2659.7,3.2078]
[1740412803126,0.3774,2660.0,2659.7,3.2078]
[1740412803327,0.75191,2659.9,2659.8,0.7519]
[1740412803636,0.75182,2660.2,2660.1,0.75181]
[1740412803830,1.12922,2660.2,2660.1,3.2078]
[1740412804837,3.5774,2660.3,2660.1,3.2078]
[1740412805029,0.5904,2660.3,2660.1,3.2078]
[1740412805425,3.2078,2660.9,2660.1,3.2078]
[1740412805630,0.7518,2660.2,2660.1,3.2078]
[1740412806235,0.75194,2659.7,2659.6,3.2078]
[1740412806530,0.752,2659.5,2659.4,0.00564483]
[1740412806925,1.88041,2659.0,2658.4,0.30007675]
[1740412807128,3.2078,2659.4,2658.3,4.3114]
[1740412807329,0.75231,2658.4,2658.3,3.2078]
[1740412807529,1.88038,2659.0,2658.3,3.2078]
[1740412807724,3.2078,2659.1,2658.6,3.2078]
[1740412807929,0.75231,2658.4,2658.3,3.2078]
[1740412808226,0.75231,2658.4,2658.1,20.849]
[1740412808227,0.75237,2658.2,2658.1,20.849]
[1740412808536,0.75237,2658.2,2658.1,0.00564483]
[1740412808930,0.75234,2658.3,2658.1,3.96581483]
[1740412809129,0.75237,2658.2,2658.1,0.00564483]
[1740412809428,3.2078,2658.8,2658.1,0.00564483]
[1740412809630,1.8804,2659.0,2658.1,0.00564483]
[1740412809631,5.6214,2659.0,2658.1,0.00564483]
[1740412809831,0.75237,2658.2,2658.1,0.00564483]
[1740412810033,5.62137,2659.0,2658.1,0.00564483]
[1740412810232,0.00564483,2659.1,2658.5,3.2078]
[1740412810429,0.75224,2658.7,2658.3,3.2078]
[1740412810725,0.75231,2658.4,2658.3,3.2078]
[1740412810923,1.88043,2658.9,2658.3,3.2078]
[1740412811127,0.75237,2658.2,2658.1,0.00564483]
[1740412811831,6.9498,2658.8,2658.1,0.00564483]
[1740412812028,1.88065,2658.6,2658.1,0.00564483]
[1740412812332,0.75237,2658.2,2658.1,0.00564483]
[1740412813029,6.75237,2658.2,2658.1,0.00564483]
[1740412813230,1.88112,2658.0,2656.9,0.5558]
[1740412813430,3.2078,2658.1,2657.1,3.2078]
[1740412813631,1.88072,2658.5,2657.7,3.2078]
[1740412813832,0.75259,2657.5,2657.2,3.96044]
[1740412814026,1.88102,2658.1,2657.2,3.96044]
[1740412814027,0.75262,2657.3,2657.2,3.2078]
[1740412814233,1.8812,2657.9,2657.2,3.96044]
[1740412814434,0.75262,2657.4,2657.2,3.96045]
[1740412814733,0.75262,2657.3,2657.2,3.2078]
[1740412815128,0.00564483,2657.5,2657.2,3.2078]
[1740412815433,0.00564483,2657.5,2657.4,0.7526]
[1740412815639,0.75234,2658.3,2657.5,1.88141]
[1740412815834,3.742,2658.6,2658.1,3.96017]
[1740412816029,0.75234,2658.3,2658.1,3.96017]
[1740412816229,0.75238,2658.2,2658.1,44.0078]
[1740412816434,0.75247,2657.9,2657.6,3.96033]
[1740412816630,0.75247,2657.9,2657.0,4.84140483]
[1740412816631,0.75243,2658.0,2657.3,3.741]
[1740412816937,0.5636,2657.8,2657.2,3.2078]
[1740412817137,0.75262,2657.3,2657.2,3.2078]
[1740412817332,0.5636,2657.8,2657.2,3.2078]
[1740412817636,0.7526,2657.4,2657.2,3.2078]
[1740412817839,0.5636,2657.8,2657.2,3.2078]
[1740412818033,0.5636,2657.8,2657.2,3.96044]
[1740412818235,0.5636,2657.8,2657.2,3.2078]
[1740412818539,0.75262,2657.3,2657.2,3.2078]
[1740412818841,0.75268,2657.1,2657.0,0.00564483]
[1740412820437,0.75268,2657.1,2657.0,4.83e-06]
[1740412820634,6.75268,2657.1,2657.0,4.83e-06]
[1740412820838,9.73968,2657.1,2657.0,4.83e-06]
[1740412821435,8.987,2657.1,2656.0,3.2078]
[1740412821639,1.88192,2656.8,2656.3,3.2078]
[1740412821833,3.7814,2657.0,2656.4,0.75285]
[1740412822141,0.75279,2656.7,2656.6,3.96062]
[1740412822335,3.7814,2657.0,2656.6,3.96062]
[1740412822336,0.5736,2657.0,2656.6,3.2078]
[1740412822543,0.5736,2657.0,2656.4,0.00564483]
[1740412822738,0.75285,2656.5,2656.4,0.00564483]
[1740412823535,0.5736,2657.0,2656.4,0.00564483]
[1740412823748,0.75285,2656.5,2656.4,0.00564483]
[1740412826146,0.5736,2657.0,2656.4,0.00564483]
[1740412826445,0.75279,2656.7,2656.6,3.2078]
[1740412826641,0.75285,2656.5,2656.4,0.00564483]
[1740412826837,0.75275,2656.9,2656.8,0.75275]
[1740412827041,0.75277,2656.8,2656.7,3.2078]
[1740412827738,0.54634483,2658.0,2656.7,9.2078]
[1740412827946,0.00564483,2658.0,2657.9,3.2078]
[1740412828147,0.75807483,2658.0,2657.9,3.2078]
[1740412828344,0.00564483,2658.0,2657.9,3.96025]
[1740412831548,0.00564483,2658.0,2657.9,7.70125]
[1740412831945,0.75224,2658.7,2658.5,0.75226]
[1740412832142,0.75226,2658.6,2658.5,3.741]
[1740412832342,0.3774,2658.8,2658.5,3.741]
[1740412832550,0.5547,2659.7,2658.7,3.2078]
[1740412832850,0.75211,2659.1,2659.0,3.95993]
[1740412833146,0.75211,2659.1,2659.0,3.2078]
[1740412833651,0.75214,2659.0,2658.9,0.00564483]
[1740412833952,3.95994,2659.0,2658.9,4.83e-06]
[1740412834250,7.69994,2659.0,2658.9,4.83e-06]
[1740412834749,13.69994,2659.0,2658.9,4.83e-06]
[1740412835051,7.69994,2659.0,2658.9,4.83e-06]
[1740412835350,13.69994,2659.0,2658.9,4.83e-06]
[1740412836245,0.75214,2659.0,2658.9,4.83e-06]
[1740412837155,0.75243,2658.0,2657.9,3.2078]
[1740412837450,1.88086,2658.3,2657.9,3.2078]
[1740412837653,0.75243,2658.0,2657.9,3.2078]
[1740412838251,0.75251,2657.7,2657.6,3.2078]
[1740412838555,0.3774,2657.8,2657.0,3.2078]
[1740412838750,0.75257,2657.5,2657.4,3.21344483]
[1740412839149,0.75257,2657.5,2657.4,0.00564483]
[1740412839453,0.75257,2657.5,2657.4,0.75824483]
[1740412839755,0.75257,2657.5,2657.4,3.21344483]
[1740412839951,0.75257,2657.5,2657.4,0.00564483]
[1740412840147,0.75279,2656.7,2656.6,3.2078]
[1740412840655,1.88171,2657.2,2656.6,3.2078]
[1740412840951,6.9468,2657.8,2656.9,3.2078]
[1740412841150,0.55614483,2657.9,2657.2,3.2078]
[1740412841351,0.75254,2657.6,2657.5,3.2078]
[1740412841746,0.00564483,2657.9,2657.5,3.2078]
[1740412841953,0.00564483,2657.9,2657.8,3.96028]
[1740412842458,0.75809483,2657.9,2657.8,6.9468]
[1740412842953,0.00564483,2657.9,2657.8,7.69928]
[1740412843251,0.75809483,2657.9,2657.8,6.9468]
[1740412843455,0.75809483,2657.9,2657.6,40.8]
[1740412843456,0.75254,2657.6,2657.5,3.739]
[1740412843652,0.75254,2657.6,2657.5,6.9468]
[1740412844246,0.75254,2657.6,2657.5,3.2078]
[1740412844454,1.12994,2657.6,2657.5,3.2078]
[1740412844756,1.12994,2657.6,2657.1,3.74464483]
[1740412844757,0.3774,2657.6,2657.1,0.00564483]
[1740412844960,0.75265,2657.2,2657.1,3.21344483]
[1740412845358,1.13005,2657.2,2657.1,3.21344483]
[1740412845665,1.13005,2657.2,2657.1,0.00564483]
[1740412846453,10.33785,2657.2,2657.1,4.83e-06]
[1740412846651,7.13005,2657.2,2657.1,4.83e-06]
[1740412846854,10.33785,2657.2,2657.1,4.83e-06]
[1740412847058,7.13005,2657.2,2657.1,4.83e-06]
[1740412847256,10.33785,2657.2,2657.1,4.83e-06]
[1740412847656,9.96045,2657.2,2657.1,4.83e-06]
[1740412850560,3.96045,2657.2,2657.1,4.83e-06]
[1740412850757,0.75265,2657.2,2657.1,4.83e-06]
[1740412851461,8.82471,2657.6,2657.1,4.83e-06]
[1740412851462,8.24211,2657.6,2657.1,4.83e-06]
[1740412851655,0.75263,2657.3,2657.2,3.2078]
[1740412852055,0.75265,2657.2,2657.1,4.83e-06]
[1740412854059,0.75265,2657.3,2657.2,0.75264]
[1740412854465,6.3607,2657.6,2657.2,6.9458]
[1740412854764,5.46885517,2657.6,2657.5,3.96037]
[1740412854966,4.70745517,2657.6,2657.5,3.96037]
[1740412855162,4.70745517,2657.6,2657.5,7.69837]
[1740412855367,4.70745517,2657.6,2657.5,3.96037]
[1740412855562,4.70745517,2657.6,2657.5,7.69837]
[1740412856167,2.04714074,2657.6,2657.5,7.69837]
[1740412858065,2.04714074,2657.6,2657.1,4.83e-06]
[1740412858461,2.04714074,2657.6,2657.2,5.08944]
[1740412858768,2.04714074,2657.6,2657.1,4.83e-06]
[1740412859164,2.04714074,2657.6,2657.3,3.2078]
[1740412859366,2.04714074,2657.6,2657.4,0.75258]
[1740412859666,0.75259,2657.5,2657.4,0.75258]
[1740412859965,0.7526,2657.4,2657.3,3.96041]
[1740412860172,2.04714074,2657.6,2657.3,3.96041]
[1740412860173,2.04714074,2657.6,2657.5,0.75257]
[1740412860365,2.04714074,2657.6,2657.5,4.48957]
[1740412860679,0.5658,2659.4,2657.6,3.2078]
[1740412860869,0.75206,2659.3,2659.2,3.2078]
[1740412861075,3.2078,2659.9,2659.2,3.2078]
[1740412861563,1.88001,2659.5,2658.7,3.7532]
[1740412861763,0.75225,2658.7,2658.5,4.2792]
[1740412861963,0.75226,2658.6,2658.5,3.737]
[1740412862271,0.5376,2659.4,2658.5,3.737]
[1740412862272,0.5376,2659.4,2658.8,0.00564483]
[1740412862468,3.21344483,2659.8,2658.9,3.2078]
[1740412862775,0.75204,2659.4,2658.9,3.2078]
[1740412863069,1.87987,2659.7,2658.9,3.2078]
[1740412863270,0.75214,2659.0,2658.9,3.2078]
[1740412863470,1.88008,2659.4,2658.8,3.96564483]
[1740412863666,0.75217,2658.9,2658.8,0.00564483]
[1740412863870,3.95997,2658.9,2658.8,0.00564483]
[1740412864070,0.75217,2658.9,2658.8,0.00564483]
[1740412865875,6.75217,2658.9,2658.8,0.00564483]
[1740412866073,3.2078,2659.2,2658.2,3.2078]
[1740412866267,0.75229,2658.5,2658.2,3.2078]
[1740412866474,1.88043,2658.9,2658.2,3.2078]
[1740412866673,0.75234,2658.3,2658.2,3.2078]
[1740412866866,0.75248,2657.8,2657.7,3.7924]
[1740412867174,0.75245,2657.9,2657.8,0.75247]
[1740412867378,0.00564483,2658.0,2657.9,0.75245]
[1740412868180,0.00564483,2658.0,2657.8,0.5796]
[1740412868379,0.75248,2657.8,2657.7,3.2078]
[1740412868568,0.75248,2657.8,2657.7,3.96031]
[1740412869068,0.75254,2657.6,2657.5,4.49321483]
[1740412869269,3.21344483,2658.0,2657.5,3.74064483]
[1740412869270,0.00564483,2658.0,2657.5,3.74064483]
[1740412869471,0.00564483,2658.0,2657.8,0.75248]
[1740412869675,0.00564483,2658.0,2657.7,3.2078]
[1740412869676,0.75248,2657.8,2657.7,3.9603]
[1740412870177,0.75248,2657.8,2657.7,3.96031]
[1740412870678,0.00564483,2658.0,2657.9,0.75245]
[1740412870874,5.0881,2659.1,2658.2,1.88092]
[1740412871172,0.3774,2659.1,2658.6,0.75224]
[1740412871378,0.75226,2658.6,2658.5,3.96007]
[1740412871672,0.75225,2658.7,2658.6,0.75225]
[1740412871974,0.75226,2658.6,2658.5,3.2078]
[1740412872476,0.75239,2658.2,2658.1,3.735]
[1740412872871,0.75243,2658.0,2657.9,3.2078]
[1740412873272,0.75251,2657.7,2657.6,6.9428]
[1740412873675,0.75251,2657.7,2657.6,3.2078]
[1740412875272,5.64076,2658.1,2657.6,6.9418]
[1740412875273,0.5519,2658.1,2657.6,6.9418]
[1740412875480,1.1436,2658.5,2657.9,3.2078]
[1740412875670,0.561,2658.7,2658.2,3.2078]
[1740412875870,0.75222,2658.8,2658.7,0.75222]
[1740412876171,0.00564483,2658.9,2658.6,3.2078]
[1740412876370,0.00564483,2658.9,2658.8,0.7522]
[1740412876776,0.00564483,2658.9,2658.6,3.96004]
[1740412876983,0.00564483,2658.9,2658.6,3.2078]
[1740412877176,0.75231,2658.4,2658.3,6.9418]
[1740412877377,0.7524,2658.1,2658.0,4.3515]
[1740412877576,1.88065,2658.6,2658.0,3.7832]
[1740412877783,0.7524,2658.1,2658.0,4.53561]
[1740412878081,0.7524,2658.1,2658.0,3.96023]
[1740412878280,0.7524,2658.1,2658.0,3.2078]
[1740412878478,4.3203,2658.6,2657.8,4.86631366]
[1740412878676,0.7524,2658.1,2658.0,3.2078]
[1740412879079,1.1125,2658.6,2658.0,3.2078]
[1740412879379,0.75245,2657.9,2657.8,4.86631366]
[1740412879877,2.99318,2658.6,2657.7,3.2078]
[1740412880082,0.75244,2658.0,2657.9,0.75244]
[1740412880280,0.75244,2658.0,2657.7,3.2078]
[1740412880482,0.75244,2658.0,2657.8,0.75246]
[1740412880783,0.75248,2657.9,2657.7,3.9603]
[1740412880976,1.12908,2657.8,2657.7,3.2078]
[1740412881180,0.5767,2658.2,2657.8,0.75247]
[1740412881377,0.9533,2658.2,2657.7,3.2078]
[1740412881577,1.12899,2658.2,2658.1,0.7524]
[1740412881777,1.12899,2658.2,2658.0,3.96021]
[1740412881973,0.7524,2658.1,2658.0,3.2078]
[1740412882282,0.75249,2657.8,2657.7,3.2078]
[1740412883280,0.5743,2658.0,2657.5,0.00564483]
[1740412883475,0.75254,2657.6,2657.5,0.00564483]
[1740412883788,0.75282,2656.6,2656.5,3.2078]
[1740412884687,0.5586,2656.9,2656.5,3.2078]
[1740412884883,0.75282,2656.6,2656.5,3.96063]
[1740412885091,0.75282,2656.6,2656.5,3.2078]
[1740412885385,0.75288,2656.4,2656.3,0.75854483]
[1740412885591,0.75288,2656.4,2656.3,0.00564483]
[1740412885890,0.75283,2656.6,2656.5,0.75285]
[1740412886087,0.75283,2656.6,2656.5,3.2078]
[1740412886689,0.75288,2656.4,2656.3,0.00564483]
[1740412887389,5.08982,2656.7,2656.2,3.2078]
[1740412887587,0.75291,2656.3,2656.2,3.2078]
[1740412889184,0.75296,2656.1,2656.0,0.00564483]
[1740412890891,1.88760483,2656.8,2656.0,0.00564483]
[1740412891190,0.75293,2656.3,2656.2,3.2078]
[1740412891398,0.7529,2656.4,2656.2,3.96073]
[1740412891595,0.75282,2656.7,2656.5,0.75284]
[1740412891790,0.75288,2656.4,2656.3,6.9418]
[1740412891991,0.00564483,2656.8,2656.4,1.8822]
[1740412892184,0.00564483,2656.8,2656.7,0.75279]
[1740412892391,0.5447,2657.3,2656.7,0.75279]
[1740412892597,1.12925,2657.2,2657.1,3.2078]
[1740412892894,0.5447,2657.3,2656.8,3.2078]
[1740412892895,1.12936,2656.9,2656.8,3.2078]
[1740412893093,0.5447,2657.3,2657.1,0.75268]
[1740412893287,3.2078,2657.8,2657.1,3.2078]
[1740412893488,0.75262,2657.3,2657.2,0.75264]
[1740412893688,0.00564483,2657.7,2657.1,3.2078]
[1740412893894,0.00564483,2657.7,2657.6,0.75254]
[1740412894393,0.00564483,2657.7,2657.4,6.94744483]
[1740412894597,1.12917,2657.5,2657.4,0.00564483]
[1740412894991,0.75257,2657.5,2657.4,0.00564483]
[1740412895187,0.75282,2656.6,2656.5,6.9408]
[1740412895390,0.75282,2656.6,2656.5,3.2078]
[1740412895592,1.12941,2656.7,2656.5,3.2078]
[1740412895885,1.1327,2657.1,2656.5,3.96064]
[1740412896089,1.1327,2657.1,2656.6,0.75282]
[1740412896386,1.1327,2657.1,2656.7,0.75279]
[1740412896590,0.75277,2656.8,2656.6,0.7528]
[1740412896795,0.75282,2656.6,2656.5,3.96627483]
[1740412896994,1.12941,2656.7,2656.5,3.21344483]
[1740412897199,0.75282,2656.6,2656.5,3.21344483]
[1740412897692,1.12942,2656.6,2656.5,3.21344483]
[1740412897896,0.3766,2656.6,2656.5,3.96629483]
[1740412898100,0.75282,2656.6,2656.5,3.21344483]
[1740412898399,1.12942,2656.6,2656.5,3.21344483]
[1740412898588,1.12942,2656.6,2656.5,3.96629483]
[1740412898789,0.3766,2656.6,2656.5,3.96629483]
[1740412898992,1.5093,2657.1,2656.5,3.21344483]
[1740412899299,0.3766,2656.8,2656.5,3.21344483]
[1740412899497,1.1327,2657.1,2656.5,3.21344483]
[1740412899694,0.5795,2657.1,2656.8,3.2078]
[1740412899996,0.3766,2657.4,2656.8,6.9408]
[1740412900296,0.75265,2657.2,2657.1,3.2078]
[1740412900594,0.5819,2657.6,2657.1,3.2078]
[1740412900995,0.75265,2657.2,2657.1,3.96048]
[1740412901192,0.75265,2657.2,2657.1,3.2078]
[1740412901590,3.2078,2657.4,2656.5,0.00564483]
[1740412901902,0.75282,2656.6,2656.5,0.75849483]
[1740412902297,1.12942,2656.6,2656.5,0.00564483]
[1740412902498,0.5515,2657.1,2656.5,0.00564483]
[1740412902795,0.75278,2656.8,2656.7,3.2078]
[1740412902991,2.43323,2657.1,2656.5,0.00564483]
[1740412902992,0.75282,2656.6,2656.5,0.00564483]
[1740412903297,1.12942,2656.6,2656.5,0.00564483]
[1740412903896,0.75282,2656.6,2656.5,0.00564483]
[1740412904195,1.12942,2656.6,2656.5,0.00564483]
[1740412907702,0.75282,2656.6,2656.5,0.00564483]
[1740412907898,0.5515,2657.1,2656.5,0.00564483]
[1740412908099,0.75282,2656.6,2656.5,0.00564483]
[1740412908899,0.75296,2656.1,2656.0,3.2078]
[1740412909106,0.5774,2656.5,2655.7,3.2078]
[1740412909306,1.88229,2656.3,2655.7,3.2078]
[1740412909505,0.75312,2655.6,2655.5,4.48511]
[1740412910000,0.75309,2655.7,2655.6,0.75309]
[1740412910600,0.75870483,2655.8,2655.7,0.75308]
[1740412910801,0.00564483,2655.8,2655.5,3.732]
[1740412910998,0.00564483,2655.8,2655.7,3.96088]
[1740412912798,1.50035517,2656.0,2655.9,0.75302]
[1740412913306,0.75277,2656.8,2656.7,0.75277]
[1740412913504,0.5695,2657.2,2656.7,3.2078]
[1740412913906,0.75277,2656.8,2656.7,3.96059]
[1740412914102,0.75277,2656.8,2656.7,0.00564483]
[1740412914405,0.75277,2656.8,2656.0,3.2078]
[1740412914406,9.2078,2656.8,2656.0,3.2078]
[1740412914608,0.75296,2656.1,2656.0,3.2078]
[1740412915395,0.75296,2656.1,2655.2,2.47952]
[1740412915396,0.75305,2655.8,2655.7,3.2078]
[1740412918404,0.5551,2655.9,2655.5,0.00376803]
[1740412918711,0.75311,2655.6,2655.5,0.00376803]
[1740412919210,0.7533,2654.9,2654.8,3.9611]
[1740412919409,0.75329,2655.0,2654.9,0.75328]
[1740412919606,0.7533,2654.9,2654.8,3.96112]
[1740412919808,0.7533,2654.9,2654.8,3.2078]
[1740412920213,0.7533,2654.9,2654.8,3.96112]
[1740412920510,0.5718,2655.2,2654.8,3.2078]
[1740412920714,0.7533,2654.9,2654.8,3.2078]
[1740412921309,0.7533,2654.9,2654.8,3.96113]
[1740412921507,0.7533,2654.9,2654.8,3.2078]
[1740412921704,0.5718,2655.2,2654.8,3.2078]
[1740412921904,0.75329,2655.0,2654.9,0.75328]
[1740412922212,0.5718,2655.2,2654.8,6.9388]
[1740412922614,0.5718,2655.2,2655.1,3.96105]
[1740412922814,0.5892,2655.6,2655.1,3.2078]
[1740412923115,0.5892,2655.6,2655.2,3.2078]
[1740412923413,0.5892,2655.6,2655.3,40.8]
[1740412923912,0.75325,2655.1,2655.0,0.75325]
[1740412924316,1.88284,2655.5,2654.9,3.2078]
[1740412924609,0.75328,2655.0,2654.9,3.2078]
[1740412924818,0.75336,2654.7,2654.6,3.2078]
[1740412925008,0.75331,2654.9,2654.6,3.2078]
[1740412925208,0.75334,2654.8,2654.7,0.75333]
[1740412925405,0.75336,2654.7,2654.6,3.2078]
[1740412925614,0.75335,2654.8,2654.7,0.75335]
[1740412925809,0.5816,2655.0,2654.6,3.2078]
[1740412926013,0.75334,2654.8,2654.7,0.75334]
[1740412926213,0.75336,2654.7,2654.6,3.2078]
[1740412926416,0.75346,2654.4,2654.2,7.69229]
[1740412926621,0.75347,2654.3,2654.2,3.2078]
[1740412926811,0.5383,2654.9,2654.2,6.9388]
[1740412927014,0.5816,2655.0,2654.9,0.7533]
[1740412927312,2.984,2655.7,2655.5,0.75313]
[1740412927313,0.5383,2655.6,2655.5,0.75313]
[1740412927509,0.75311,2655.6,2655.5,0.75313]
[1740412927909,0.00564483,2655.8,2655.4,3.731]
[1740412928113,0.00564483,2655.8,2655.7,3.96088]
[1740412928916,1.653,2656.4,2655.7,9.96088]
[1740412929112,0.32657294,2656.2,2656.1,3.96076]
[1740412929308,2.94e-06,2656.2,2656.1,7.69076]
[1740412929607,2.94e-06,2656.2,2656.1,3.2078]
[1740412929812,0.75294294,2656.2,2656.1,3.73]
[1740412930116,0.3766,2656.0,2655.6,6.9378]
[1740412930313,0.5366,2656.1,2655.9,0.00564483]
[1740412930512,0.75299,2656.1,2656.0,3.2078]
[1740412930708,2.94e-06,2656.2,2656.0,3.2078]
[1740412931321,2.94e-06,2656.2,2656.1,4.48296]
[1740412932533,0.00484777,2656.4,2656.3,0.75291]
[1740412932824,0.00484777,2656.4,2656.3,3.96071]
[1740412933324,0.75772777,2656.4,2656.3,3.2078]
[1740412934419,0.00484777,2656.4,2656.3,3.2078]
[1740412934623,0.00484777,2656.4,2656.3,3.96071]
[1740412934819,0.75772777,2656.4,2656.3,3.2078]
[1740412935020,0.00484777,2656.4,2656.3,3.96071]
[1740412935733,1.88127,2657.8,2656.4,1.88215]
[1740412935936,0.5655,2657.4,2657.1,3.2078]
[1740412936229,0.75265,2657.2,2657.1,3.2078]
[1740412936428,0.75262,2657.3,2657.1,3.2078]
[1740412936628,0.5655,2657.4,2656.8,6.9368]
[1740412936828,0.5655,2657.4,2656.9,0.00564483]
[1740412936829,2.44702,2657.4,2656.9,0.00564483]
[1740412937146,0.75263,2657.3,2657.2,0.75265]
[1740412937429,0.5655,2657.4,2657.1,3.2078]
[1740412937629,0.75265,2657.2,2657.1,3.2078]
[1740412937827,0.5655,2657.4,2657.1,3.2078]
[1740412938032,0.00564483,2657.5,2657.4,0.7526]
[1740412938231,0.00564483,2657.5,2657.4,7.6884]
[1740412938433,0.5679,2658.1,2658.0,0.75243]
[1740412938646,0.75239,2658.2,2658.0,3.96023]
[1740412938832,0.5483,2658.5,2658.0,6.9358]
[1740412939331,0.7524,2658.1,2658.0,6.9358]
[1740412939533,0.5483,2658.5,2658.0,6.9358]
[1740412939743,0.55394483,2658.5,2658.0,3.2078]
[1740412939930,0.75248,2657.8,2657.7,3.2078]
[1740412940126,0.7526,2657.4,2657.3,20.879]
[1740412940530,2.44933,2657.7,2657.1,6.9358]
[1740412940731,0.5424,2657.6,2657.1,6.9358]
[1740412940935,0.75265,2657.2,2657.1,6.9358]
[1740412941132,0.5424,2657.6,2657.1,6.9358]
[1740412941333,0.5424,2657.6,2657.2,0.75263]
[1740412941729,2.42376,2657.6,2657.1,6.9358]
[1740412941934,0.75265,2657.2,2657.1,3.2078]
[1740412942138,0.5424,2657.6,2657.1,3.2078]
[1740412942931,1.32052,2657.7,2657.6,0.75254]
[1740412943133,0.5731,2658.0,2657.4,3.2078]
[1740412943337,0.5731,2658.0,2656.9,2.18897653]
[1740412943338,0.75251,2657.7,2657.6,3.727]
[1740412943534,1.88127,2657.8,2657.4,3.727]
[1740412943731,0.75257,2657.5,2657.4,3.727]
[1740412943934,0.75265,2657.2,2657.1,3.2078]
[1740412944133,0.75265,2657.2,2657.1,3.96047]
[1740412944333,5.08912,2657.7,2657.1,3.96047]
[1740412944529,0.75265,2657.2,2657.1,3.2078]
[1740412944734,0.75271,2657.0,2656.9,0.00564483]
[1740412945040,1.33581,2657.1,2656.9,0.00564483]
[1740412945256,0.5791,2657.4,2656.9,0.00564483]
[1740412945257,0.5791,2657.4,2657.0,3.726]
[1740412945541,1.33172,2657.4,2657.2,3.96044]
[1740412945743,1.1203,2657.7,2657.2,3.2078]
[1740412945945,1.6994,2657.7,2657.0,3.726]
[1740412946238,0.75257,2657.5,2657.4,3.2078]
[1740412946542,0.75257,2657.5,2657.1,0.75267]
[1740412946543,0.75268,2657.1,2657.0,6.9338]
[1740412947345,1.88148,2657.5,2657.0,7.6865]
[1740412947645,0.75268,2657.1,2657.0,6.9338]
[1740412947844,1.1622,2657.7,2657.0,6.9338]
[1740412948143,0.75261,2657.4,2657.3,3.2078]
[1740412948337,1.1622,2657.7,2657.3,3.2078]
[1740412948641,1.33562,2657.7,2657.6,3.2078]
[1740412949244,0.75254,2657.6,2657.5,3.726]
[1740412950545,0.75254,2657.6,2657.0,0.7527]
[1740412950546,0.75268,2657.1,2657.0,6.9328]
[1740412952440,0.75271,2657.0,2656.9,0.00564483]
[1740412952643,0.75271,2657.0,2656.9,4.83e-06]
[1740412953247,5.01311,2657.0,2656.9,4.83e-06]
[1740412954143,0.5354,2657.0,2656.9,4.83e-06]
[1740412954441,1.28811,2657.0,2656.9,4.83e-06]
[1740412954638,7.66471,2657.0,2656.9,4.83e-06]
[1740412954838,1.66471,2657.0,2656.9,4.83e-06]
[1740412955035,11.38871,2657.0,2656.9,4.83e-06]
[1740412955246,11.38871,2657.0,2655.4,21.1203]
[1740412955247,4.636,2657.0,2655.4,24.3281]
[1740412955443,0.75313,2655.6,2655.5,0.75313]
[1740412955740,1.88221,2656.4,2655.5,1.88284]
[1740412955946,0.5609,2656.3,2656.0,3.2078]
[1740412956139,0.75294,2656.2,2656.0,3.96078]
[1740412956340,0.75299,2656.0,2655.9,3.724]
[1740412956738,0.5609,2656.3,2656.0,0.75297]
[1740412956943,0.5609,2656.3,2655.9,6.9318]
[1740412957143,0.75298,2656.1,2655.9,7.68481]
[1740412957447,0.5609,2656.3,2655.9,6.9318]
[1740412957845,1.31383,2656.3,2656.1,3.96075]
[1740412958150,0.5609,2656.3,2656.1,3.2078]